{"text_format":"1","workbook":"xlsx","n_sheets":3,"sheets":["Instruccions","Reformulació Pressupost Aa","Resum Pressupost"],"not_rendered":{"charts":0,"images":2,"macros":1,"external_links":0,"defined_names":7,"comments":1,"pivot_tables":0},"unopened":[],"bounds":{"document_bytes":16777216,"sheet_cells":100000,"rows_first":2000,"rows_last":500,"rows_between":2000,"halvings":0,"cell_chars":16384,"cell_head_chars":4096},"cells_cut":0,"cells_raw":0,"read":"whole","date_system":"1900"}

{"sheet":"Instruccions","index":0,"n_rows":19,"n_cols":10,"rows_kept":19,"cut":false,"hidden":false,"merged":[[1,9,1,11],[2,2,3,17],[4,2,4,17],[17,1,17,17],[15,1,15,17],[13,1,13,17],[10,1,10,17],[11,1,11,17],[9,1,9,17],[7,2,7,17]]}
[]
[null,null,null,null,null,null,null,null,null,"Doc_basic3_pressup_reformulat_Aa INSTRUCCIONS"]
[null,null,"SUBVENCIONS DE L’AJUNTAMENT DE BARCELONA PER L’ENFORTIMENT DE L’ECONOMIA SOCIAL I SOLIDÀRIA I PER LA INTERCOOPERACIÓ EN L’ESTRATÈGIA #ESSBCN2030 - ENFORTIM L’ESS 2025"]
[]
[null,null,"Aspectes rellevants relacionats amb la reformulació"]
[]
[]
[null,null,"INSTRUCCIONS"]
[]
[null,"1. Emplenar només les cel·les en blanc de la pestanya  \"Reformulació Pressupost\" amb les dades econòmiques del projecte:"]
[null,"1.1  Emplenar els quadres DADES BÀSIQUES-PREVISIÓ DE DESPESES DEL PROJECTE SUBVENCIONABLE INICIAL, amb les dades econòmiques de la proposta inicial amb subvenció atorgada."]
[null,"1.2  Emplenar els quadres DADES BÀSIQUES-PREVISIÓ DE DESPESES DEL PROJECTE REFORMULAT, amb les dades econòmiques de la proposta de reformulació."]
[]
[null,"2. Revisar i emplenar només les cel·les en blanc de la pestanya  \"Resum Pressupost\" amb les dades econòmiques del projecte."]
[]
[null,"3. Imprimir els fulls de les 2 pestanyes (Reformulació pressupost i Resum Pressupost). En format pdf."]
[]
[null,"4. Si la sol·licitud es va presentar per via telemàtica, cal que registreu la documentació telemàticament dins la convocatòria específica com annexió de documents addicionals i feu servir el número de tràmit que el sistema de registre us va donar en el moment de la presentació de la sol·licitud de la subvenció."]
[null,"Enllaç per realitzar el tràmit."]

{"sheet":"Reformulació Pressupost Aa","index":1,"n_rows":111,"n_cols":15,"rows_kept":111,"cut":false,"hidden":false,"merged":[[16,10,16,12],[13,10,13,12],[1,1,1,10],[3,0,3,14],[6,1,6,9],[7,1,7,9],[10,1,10,9],[8,1,8,9],[9,1,9,9],[4,0,4,14],[95,0,95,14],[96,0,96,14],[97,0,97,14],[12,0,12,3],[12,6,12,9],[18,12,18,14],[16,1,16,3],[18,0,18,4],[16,7,16,9],[18,6,18,10],[14,7,14,9],[15,7,15,9],[13,1,13,3],[14,1,14,3],[15,1,15,3],[13,7,13,9],[98,0,98,14],[99,0,99,14],[109,0,109,14],[110,0,110,14],[102,0,102,14],[103,0,103,14],[104,0,104,14],[105,0,105,14],[106,0,106,14],[107,0,107,14],[108,0,108,14],[100,0,100,14],[101,0,101,14]]}
[]
[null,"Reformulació pressupost Modalitat Aa"]
[]
["Programa de subvencions de l'Ajuntament de Barcelona per l'enfortiment de l'Economia Social i Solidària i per la intercooperació en l'Estratègia #ESSBCN2030 - ENFORTIM L’ESS 2025"]
["EMPLENAR NOMÉS LES CEL·LES EN BLANC"]
[]
["Nom de la persona jurídica"]
["NIF de la persona jurídica"]
["Nom de la persona física"]
["NIF de la persona física"]
["Nom del projecte subvencionable"]
[]
["DADES BÀSIQUES DEL PROJECTE INICIAL SOL·LICITAT\n(indicar les dades sol·licitades a la proposta inicial)",null,null,null,null,null,"DADES BÀSIQUES PROJECTE REFORMULAT"]
["Import total del projecte subvencionable",null,null,null,null,null,"Import total del projecte REFORMULAT",null,null,null,{"$f":"IF(H14<B14*0.7,\"No es pot reformular més d'un 30%.\",\"\")","v":""}]
["Import imputable a la subvenció municipal",null,null,null,null,null,"Import imputable a la subvenció ATORGADA\n(indicar l'import atorgat a la resolució)"]
["Import de l'aportació i/o cofinançament de l'organització",{"$f":"+B14-B15","v":0},null,null,null,null,"Import de l'aportació i/o cofinançament de l'organització",{"$f":"H14-H15","v":0}]
["% de l'import sol·licitat respecte el total del projecte subvencionable (màxim 80%*)",{"$f":"IF(B15>0,B15/B14,\"\")","v":""},null,null,"* La quantia de la subvenció atorgada no superarà el 80% de la despesa total del projecte a subvencionar. ",null,"% de l'import sol·licitat respecte el total del projecte subvencionable (màxim 80%*)\n(ha de ser igual o inferior respecte el % de la sol·licitud inicial)",{"$f":"IF(H15>0,H15/H14,\"\")","v":""},null,null,{"$f":"IF(H17=\"\",\"\",IF(H17>0.8,\"La quantia de la subvenció atorgada no pot superar el 80% de la despesa total del projecte.\",IF(H17>B17,\"Ha de ser igual o inferior al % de la proposta inicial.\",\"\")))","v":""}]
[]
["PREVISIÓ DE DESPESES DEL PROJECTE SUBVENCIONABLE INICIAL",null,null,null,null,null,"PREVISIÓ DE DESPESES DEL PROJECTE REFORMULAT",null,null,null,null,null,"DIFERÈNCIA REFORMULACIÓ I PROJECTE INICIAL"]
[]
["Partides","Import imputable a la subvenció municipal","% subvenció / total","Import de l'aportació i/o Cofinançament de l'organització","Import total del projecte",null,"Partides","Import imputable a la subvenció municipal","% subvenció / total","Import de l'aportació i/o Cofinançament de l'organització","Import total del projecte",null,"Import imputable a la subvenció municipal","Import de l'aportació i/o Cofinançament de l'organització","Import total del projecte"]
["D1. Nòmines i seguretat social (règim general o socis/es cooperativistes en règim d’autònoms) del personal propi  vinculat al projecte subvencionable ",{"$f":"SUM(B23:B27)","v":0},{"$f":"IF(B22>0,B22/$B$15,)","v":0},{"$f":"SUM(D23:D27)","v":0},{"$f":"B22+D22","v":0},null,"D1. Nòmines i seguretat social (règim general o socis/es cooperativistes en règim d’autònoms) del personal propi  vinculat al projecte subvencionable ",{"$f":"SUM(H23:H27)","v":0},{"$f":"IF(H22>0,H22/$H$15,)","v":0},{"$f":"SUM(J23:J27)","v":0},{"$f":"+H22+J22","v":0},null,{"$f":"B22-H22","v":0},{"$f":"D22-J22","v":0},0]
[null,null,null,null,0,null,null,null,null,null,0,null,{"$f":"B23-H23","v":0},{"$f":"D23-J23","v":0},{"$f":"E23-K23","v":0}]
[null,null,null,null,0,null,null,null,null,null,0,null,0,0,0]
[null,null,null,null,0,null,null,null,null,null,0,null,0,0,0]
[null,null,null,null,0,null,null,null,null,null,0,null,0,0,0]
[null,null,null,null,0,null,null,null,null,null,0,null,0,0,0]
["D2. Rendiments anuals nets de l’empresari/a individual (veure 13.2 bases) ",{"$f":"SUM(B29:B33)","v":0},{"$f":"IF(B28>0,B28/$B$15,)","v":0},{"$f":"SUM(D29:D33)","v":0},0,null,"D2. Rendiments anuals nets de l’empresari/a individual (veure 13.2 bases)",{"$f":"SUM(H29:H33)","v":0},{"$f":"IF(H28>0,H28/$H$15,)","v":0},{"$f":"SUM(J29:J33)","v":0},0,null,{"$f":"B28-H28","v":0},{"$f":"D28-J28","v":0},0]
[null,null,null,null,0,null,null,null,null,null,{"$f":"+H29+J29","v":0},null,{"$f":"B29-H29","v":0},{"$f":"D29-J29","v":0},0]
[null,null,null,null,0,null,null,null,null,null,{"$f":"+H30+J30","v":0},null,0,{"$f":"D30-J30","v":0},0]
[null,null,null,null,0,null,null,null,null,null,0,null,0,0,0]
[null,null,null,null,0,null,null,null,null,null,0,null,0,0,0]
[null,null,null,null,0,null,null,null,null,null,0,null,0,0,0]
["TOTAL DE DESPESES DEL PERSONAL (D1+D2 Màxim 40% de l'import imputable a la subvenció municipal)",{"$f":"B22+B28","v":0},{"$f":"IF(B34>0,B34/$B$15,)","v":0},{"$f":"D22+D28","v":0},{"$f":"E22+E28","v":0},null,"TOTAL DE DESPESES DEL PERSONAL (D1+D2 Màxim 40% de l'import imputable a la subvenció municipal)",{"$f":"H22+H28","v":0},{"$f":"IF(H34>0,H34/$H$15,)","v":0},{"$f":"J22+J28","v":0},{"$f":"K22+K28","v":0},null,{"$f":"B34-H34","v":0},{"$f":"D34-J34","v":0},0]
["D3. Treballs realitzats per professionals i empreses externes directament vinculades al projecte, despeses de llicències i taxes relacionades amb la constitució, inici i desenvolupament de l'activitat",{"$f":"SUM(B36:B40)","v":0},{"$f":"IF(B35>0,B35/$B$15,)","v":0},{"$f":"SUM(D36:D40)","v":0},{"$f":"B35+D35","v":0},null,"D3. Treballs realitzats per professionals i empreses externes directament vinculades al projecte, despeses de llicències i taxes relacionades amb la constitució, inici i desenvolupament de l'activitat",{"$f":"SUM(H36:H40)","v":0},{"$f":"IF(H35>0,H35/$H$15,)","v":0},{"$f":"SUM(J36:J40)","v":0},{"$f":"+H35+J35","v":0},null,0,{"$f":"D35-J35","v":0},0]
[null,null,null,null,{"$f":"B36+D36","v":0},null,null,null,null,null,0,null,0,0,0]
[null,null,null,null,0,null,null,null,null,null,0,null,0,0,0]
[null,null,null,null,0,null,null,null,null,null,0,null,0,0,0]
[null,null,null,null,0,null,null,null,null,null,0,null,0,0,0]
[null,null,null,null,0,null,null,null,null,null,0,null,0,0,0]
["TOTAL D'ALTRES DESPESES DIRECTES ",{"$f":"B35","v":0},{"$f":"IF(B41>0,B41/$B$15,)","v":0},{"$f":"D35","v":0},{"$f":"E35","v":0},null,"TOTAL D'ALTRES DESPESES DIRECTES ",{"$f":"H35","v":0},{"$f":"IF(H41>0,H41/$H$15,)","v":0},{"$f":"J35","v":0},{"$f":"K35","v":0},null,{"$f":"B41-H41","v":0},{"$f":"D41-J41","v":0},0]
["TOTAL DESPESES DIRECTES (aquelles que s’identifiquen directament amb el projecte subvencionable)",{"$f":"SUM(B34,B41)","v":0},{"$f":"IF(B42>0,B42/$B$15,)","v":0},{"$f":"SUM(D34,D41)","v":0},{"$f":"E34+E41","v":0},null,"TOTAL DESPESES DIRECTES (aquelles que s’identifiquen directament amb el projecte subvencionable)",{"$f":"SUM(H34,H41)","v":0},{"$f":"IF(H42>0,H42/$H$15,)","v":0},{"$f":"SUM(J34,J41)","v":0},{"$f":"K34+K41","v":0},null,0,{"$f":"D42-J42","v":0},0]
["I1. Personal de suport al projecte (nòmines i seguretat social) ",{"$f":"SUM(B44:B47)","v":0},null,{"$f":"SUM(D44:D47)","v":0},{"$f":"+B43+D43","v":0},null,"I1. Personal de suport al projecte (nòmines i seguretat social) ",{"$f":"SUM(H44:H47)","v":0},null,{"$f":"SUM(J44:J47)","v":0},{"$f":"+H43+J43","v":0},null,0,{"$f":"D43-J43","v":0},0]
[null,null,null,null,0,null,null,null,null,null,0,null,0,0,0]
[null,null,null,null,0,null,null,null,null,null,0,null,0,0,0]
[null,null,null,null,0,null,null,null,null,null,0,null,0,0,0]
[null,null,null,null,0,null,null,null,null,null,0,null,0,0,0]
["I2. Assegurances",{"$f":"SUM(B49:B52)","v":0},null,{"$f":"SUM(D49:D52)","v":0},0,null,"I2. Assegurances",{"$f":"SUM(H49:H52)","v":0},null,{"$f":"SUM(J49:J52)","v":0},0,null,{"$f":"B48-H48","v":0},{"$f":"D48-J48","v":0},0]
[null,null,null,null,0,null,null,null,null,null,0,null,{"$f":"B49-H49","v":0},0,0]
[null,null,null,null,0,null,null,null,null,null,0,null,0,0,0]
[null,null,null,null,0,null,null,null,null,null,0,null,0,0,0]
[null,null,null,null,0,null,null,null,null,null,0,null,0,0,0]
["I3. Amortització",{"$f":"SUM(B54:B57)","v":0},null,{"$f":"SUM(D54:D57)","v":0},0,null,"I3. Amortització",{"$f":"SUM(H54:H57)","v":0},null,{"$f":"SUM(J54:J57)","v":0},0,null,{"$f":"B53-H53","v":0},{"$f":"D53-J53","v":0},0]
[null,null,null,null,0,null,null,null,null,null,0,null,{"$f":"B54-H54","v":0},0,0]
[null,null,null,null,0,null,null,null,null,null,0,null,0,0,0]
[null,null,null,null,0,null,null,null,null,null,0,null,0,0,0]
[null,null,null,null,0,null,null,null,null,null,0,null,0,0,0]
["I4. Lloguer de béns immobles",{"$f":"SUM(B59:B62)","v":0},null,{"$f":"SUM(D59:D62)","v":0},0,null,"I4. Lloguer de béns immobles",{"$f":"SUM(H59:H62)","v":0},null,{"$f":"SUM(J59:J62)","v":0},0,null,{"$f":"B58-H58","v":0},{"$f":"D58-J58","v":0},0]
[null,null,null,null,0,null,null,null,null,null,0,null,{"$f":"B59-H59","v":0},0,0]
[null,null,null,null,0,null,null,null,null,null,0,null,0,0,0]
[null,null,null,null,0,null,null,null,null,null,0,null,0,0,0]
[null,null,null,null,0,null,null,null,null,null,0,null,0,0,0]
["I5. Adquisició de materials i béns consumibles parcialment imputables al projecte",{"$f":"SUM(B64:B67)","v":0},null,{"$f":"SUM(D64:D67)","v":0},0,null,"I5. Adquisició de materials i béns consumibles parcialment imputables al projecte",{"$f":"SUM(H64:H67)","v":0},null,{"$f":"SUM(J64:J67)","v":0},0,null,{"$f":"B63-H63","v":0},{"$f":"D63-J63","v":0},0]
[null,null,null,null,0,null,null,null,null,null,0,null,{"$f":"B64-H64","v":0},0,0]
[null,null,null,null,0,null,null,null,null,null,0,null,0,0,0]
[null,null,null,null,0,null,null,null,null,null,0,null,0,0,0]
[null,null,null,null,0,null,null,null,null,null,0,null,0,0,0]
["I6. Manteniment d’edificis i/o instal·lacions",{"$f":"SUM(B69:B72)","v":0},null,{"$f":"SUM(D69:D72)","v":0},0,null,"I6. Manteniment d’edificis i/o instal·lacions",{"$f":"SUM(H69:H72)","v":0},null,{"$f":"SUM(J69:J72)","v":0},0,null,{"$f":"B68-H68","v":0},{"$f":"D68-J68","v":0},0]
[null,null,null,null,0,null,null,null,null,null,0,null,{"$f":"B69-H69","v":0},0,0]
[null,null,null,null,0,null,null,null,null,null,0,null,0,0,0]
[null,null,null,null,0,null,null,null,null,null,0,null,0,0,0]
[null,null,null,null,0,null,null,null,null,null,0,null,0,0,0]
["I7. Comunicacions (telèfon, correus, connexió a internet)",{"$f":"SUM(B74:B77)","v":0},null,{"$f":"SUM(D74:D77)","v":0},0,null,"I7. Comunicacions (telèfon, correus, connexió a internet)",{"$f":"SUM(H74:H77)","v":0},null,{"$f":"SUM(J74:J77)","v":0},0,null,{"$f":"B73-H73","v":0},{"$f":"D73-J73","v":0},0]
[null,null,null,null,0,null,null,null,null,null,0,null,{"$f":"B74-H74","v":0},0,0]
[null,null,null,null,0,null,null,null,null,null,0,null,0,0,0]
[null,null,null,null,0,null,null,null,null,null,0,null,0,0,0]
[null,null,null,null,0,null,null,null,null,null,0,null,0,0,0]
["I8. Despeses financeres",{"$f":"SUM(B79:B82)","v":0},null,{"$f":"SUM(D79:D82)","v":0},0,null,"I8. Despeses financeres",{"$f":"SUM(H79:H82)","v":0},null,{"$f":"SUM(J79:J82)","v":0},0,null,{"$f":"B78-H78","v":0},{"$f":"D78-J78","v":0},0]
[null,null,null,null,0,null,null,null,null,null,0,null,{"$f":"B79-H79","v":0},0,0]
[null,null,null,null,0,null,null,null,null,null,0,null,0,0,0]
[null,null,null,null,0,null,null,null,null,null,0,null,0,0,0]
[null,null,null,null,0,null,null,null,null,null,0,null,0,0,0]
["I9. Subministraments",{"$f":"SUM(B84:B87)","v":0},null,{"$f":"SUM(D84:D87)","v":0},0,null,"I9. Subministraments",{"$f":"SUM(H84:H87)","v":0},null,{"$f":"SUM(J84:J87)","v":0},0,null,{"$f":"B83-H83","v":0},{"$f":"D83-J83","v":0},0]
[null,null,null,null,0,null,null,null,null,null,0,null,{"$f":"B84-H84","v":0},0,0]
[null,null,null,null,0,null,null,null,null,null,0,null,0,0,0]
[null,null,null,null,0,null,null,null,null,null,0,null,0,0,0]
[null,null,null,null,0,null,null,null,null,null,0,null,0,0,0]
["I10. Treball realitzat per altres empreses, parcialment imputables al projecte (neteja, seguretat...)",{"$f":"SUM(B89:B92)","v":0},null,{"$f":"SUM(D89:D92)","v":0},0,null,"I10. Treball realitzat per altres empreses, parcialment imputables al projecte (neteja, seguretat...)",{"$f":"SUM(H89:H92)","v":0},null,{"$f":"SUM(J89:J92)","v":0},0,null,{"$f":"B88-H88","v":0},{"$f":"D88-J88","v":0},0]
[null,null,null,null,0,null,null,null,null,null,0,null,{"$f":"B89-H89","v":0},0,0]
[null,null,null,null,0,null,null,null,null,null,0,null,0,0,0]
[null,null,null,null,0,null,null,null,null,null,0,null,0,0,0]
[null,null,null,null,0,null,null,null,null,null,0,null,0,0,0]
["TOTAL DESPESES INDIRECTES (es podran assignar al projecte subvencionable fent sevir un percentatge d’assignació) - Màxim 10% de l’import imputable a la subvenció municipal",{"$f":"SUM(B43,B48,B53,B58,B63,B68,B73,B78,B83,B88)","v":0},{"$f":"IF(B93>0,B93/$B$15,)","v":0},{"$f":"SUM(D43,D48,D53,D58,D63,D68,D73,D78,D83,D88)","v":0},{"$f":"E43+E48+E53+E58+E63+E68+E73+E78+E83+E88","v":0},null,"TOTAL DESPESES INDIRECTES (es podran assignar al projecte subvencionable fent sevir un percentatge d’assignació) - Màxim 10% de l’import imputable a la subvenció municipal",{"$f":"SUM(H43,H48,H53,H58,H63,H68,H73,H78,H83,H88)","v":0},{"$f":"IF(H93>0,H93/$H$15,)","v":0},{"$f":"SUM(J43,J48,J53,J58,J63,J68,J73,J78,J83,J88)","v":0},{"$f":"K43+K48+K53+K58+K63+K68+K73+K78+K83+K88","v":0},{"$f":"+IF(H93>H15*0.1,\"ALERTA: Màxim 10% import imputable a la subvenció municipal\", \" \")","v":" "},{"$f":"B93-H93","v":0},{"$f":"D93-J93","v":0},0]
["TOTAL DE DESPESES PREVISTES",{"$f":"SUM(B42+B93)","v":0},{"$f":"IF(B94>0,B94/$B$15,)","v":0},{"$f":"SUM(D42+D93)","v":0},{"$f":"SUM(E42+E93)","v":0},null,"TOTAL DE DESPESES PREVISTES",{"$f":"SUM(H42+H93)","v":0},{"$f":"IF(H94>0,H94/$H$15,)","v":0},{"$f":"SUM(J42+J93)","v":0},0,null,0,{"$f":"D94-J94","v":0},0]
[null,{"$f":"IF(B94>B15,\"La suma del detall de despeses no pot ser superior a l'import total de subvenció municipal indicat al requadre\",(IF(B94<B15,\"La suma del detall de despeses no pot ser inferior a l'import total de subvenció municipal indicat al requadre\",\"\")))","v":""},null,{"$f":"IF(D94>B16,\"La suma del detall de despeses no pot ser superior a l'import total de l'aportació/confinançament indicat al requadre\",(IF(D94<B16,\"La suma del detall de despeses no pot ser inferior a l'import total de l'aportació/confinançament indicat al requadre\",\"\")))","v":""},{"$f":"IF(E94>B14,\"La suma del detall de despeses no pot ser superior a l'import total del projecte indicat al requadre\",(IF(E94<B14,\"La suma del detall de despeses no pot ser inferior a l'import total del projecte indicat al requadre\",\"\")))","v":""},null,null,{"$f":"IF(H94>H15,\"La suma del detall de despeses no pot ser superior a l'import total de subvenció municipal indicat al requadre\",(IF(H94<H15,\"La suma del detall de despeses no pot ser inferior a l'import total de subvenció municipal indicat al requadre\",\"\")))","v":""},null,{"$f":"IF(J94>H16,\"La suma del detall de despeses no pot ser superior a l'import total de l'aportació/confinançament indicat al requadre\",(IF(J94<H16,\"La suma del detall de despeses no pot ser inferior a l'import total de l'aportació/confinançament indicat al requadre\",\"\")))","v":""},{"$f":"IF(K94>H14,\"La suma del detall de despeses no pot ser superior a l'import total del projecte indicat al requadre\",(IF(K94<H14,\"La suma del detall de despeses no pot ser inferior a l'import total del projecte indicat al requadre\",\"\")))","v":""}]
["Modalitat Aa: Creació de noves cooperatives i transformació, d’altres formes jurídiques pre-existents, en cooperatives."]
["S’estableix com a obligació de la subvenció la constitució de la cooperativa, estar en disposició del NIF provisional i haver presentat la sol•licitud d’inscripció al registre corresponent abans de la finalització del projecte subvencionable. Es reconeixerà com a vàlida la sol•licitud, en el cas que el registre no hagi respost la petició durant el període d’execució. Igualment en els projectes de transformació per esdevenir cooperativa, caldrà acreditar, com a mínim, la sol•licitud d’inscripció presentada al registre corresponent en el moment de la justificació"]
[" 1. La quantia de la subvenció atorgada no superarà el 80% de la despesa total del projecte a subvencionar. "]
[" 2. L'import màxim de subvenció per a la modalitat Aa és 6.000€."]
[" 3. En el cas que la sol·licitud presentada sobrepassi l’import màxim, es considerarà com a import sol·licitat el màxim de l'establert a la convocatòria."]
[" 4. Es limita amb un màxim del 40% l’import de la subvenció per a despeses de personal propi que participa de forma directa i degudament al projecte."]
[" 5. Només amb caràcter excepcional, els/les empresaris/ies individuals que no tinguin persones treballadores en plantilla podran acreditar els seus treballs mitjançant una declaració responsable acompanyada de les declaracions IRPF (model 130)  de l'exercici corrent. El preu/hora imputat al projecte subvencionat no podrà superar la quantitat resultant de dividir els rendiments anuals nets de l’empresari/a individual per 1800."]
[" 6. En cap cas es consideraran despeses subvencionables:\n> Els impostos indirectes quan siguin susceptibles de recuperació o compensació.\n> Les despeses d'inversió, incloses les adquisicions de béns mobles.\n> Les despeses realitzades amb data anterior a l'inici del projecte i data posterior a la finalització del projecte.\n> Altres despeses que s'indiquin a la convocatòria."]
[" 7. Són imputables en aquesta modalitat les despeses indirectes, detallades en l’apartat 13.3. de les bases reguladores; amb un màxim del 10% de l'import de la subvenció."]
[" 8. La retribució de les persones contractades en el marc del projecte subvencionat no pot ser inferior al Salari Mínim Interprofessional (SMI), ni a l'estipulada al corresponent conveni o marc normatiu de referència (punt 7 de les bases 2025: requisits dels projectes)."]
[" 9. Els materials produïts de difusió, estudis, informes o materials didàctics utilitzats, etc. en el cas de tractar-se de despesa elegible de la subvenció, hauran de tenir llicència Creative Commons -Compartir Igual- (share a like)  i no podrà tenir la condició –Sense Obres Derivades- (no derivate Works)."]
[" 10.  Els projectes subvencionats han de fomentar activitats d'interès públic o social, les quals han de ser gratuïtes per a les persones participants o en cap cas el preu ha de suposar un obstacle per a la seva participació, buscant altres formes d'accés per a persones amb dificultats econòmiques. En el cas que hi hagi algun tipus de lucre, haurà de revertir en les pròpies activitats subvencionades."]
[" 11. L'Ajuntament de Barcelona i les seves entitats municipals en cap cas subvencionaran el mateix projecte, executat durant el mateix període, per cap altre procediment de concessió que no sigui el regulat per les bases reguladores."]
[" 12. El/la beneficiari/ària no podrà alterar en cap cas el destí de les subvencions concedides."]
[" 13. No es poden imputar en cap cas despeses d’inversió, corresponents a partides de l'immobilitzat, amb els diners de la subvenció atorgada en aquesta convocatòria específica. Sí que es poden imputar a la part de contribució, sempre que siguin despeses dins el període executiu del projecte subvencionat i acreditables tal i com es descriu a les bases reguladores vigents."]
[" 14. En el cas de presentar tiquets, el seu import no podrà superar el 10% de  la subvenció i aniran acompanyats d'una declaració responsable del representant legal de la  persona jurídica o de l'agrupació de persones jurídiques que indicarà en quin concepte s'imputa aquesta despesa."]

{"sheet":"Resum Pressupost","index":2,"n_rows":27,"n_cols":12,"rows_kept":27,"cut":false,"hidden":false,"merged":[[1,2,2,8],[3,0,3,9],[5,0,5,1],[6,0,7,1],[6,2,7,3],[6,4,7,5],[6,9,7,10],[6,7,7,8],[9,7,10,7],[9,8,10,8],[9,9,10,9],[9,10,10,10],[13,0,14,1],[10,4,11,4],[13,2,14,3],[13,4,14,5],[10,0,11,0],[10,1,11,1],[10,2,11,2],[10,3,11,3],[10,5,11,5],[26,7,26,10],[12,7,13,7],[12,8,13,8],[12,9,13,9],[12,10,13,10],[21,7,21,8]]}
[]
[null,null,"Resum pressupost Aa"]
[]
["Subvencions de l'Ajuntament de Barcelona per l'enfortiment de l'Economia Social i Solidària i per la intercooperació en l'Estratègia #ESSBCN2030 - ENFORTIM L’ESS 2025",null,null,null,null,null,null,null,null,null,"MODALITAT Aa"]
[]
["DESPESES PREVISTES",null,"SOL·LICITUD INICIAL","REFORMULACIÓ","SOL·LICITUD INICIAL","REFORMULACIÓ",null,"INGRESSOS PREVISTOS",null,"SOL·LICITUD INICIAL","REFORMULACIÓ"]
["Despeses directes \n(aquelles que s'identifiquen directament amb el projecte)",null,"Cost total",null,"Subvenció",null,null,"Ingressos previstos",null,"Previsió ingrés total"]
[]
["Aa","D1. Nòmines i seguretat social (règim general o socis/es cooperativistes en règim d’autònoms) del personal propi  vinculat al projecte subvencionable ",{"$f":"+'Reformulació Pressupost Aa'!E22","v":0},{"$f":"+'Reformulació Pressupost Aa'!K22","v":0},{"$f":"+'Reformulació Pressupost Aa'!B22","v":0},{"$f":"+'Reformulació Pressupost Aa'!H22","v":0},{"$f":"+IF(D9<0,\"No s'admeten valors negatius\",\"\")","v":""},"A.","Subvenció municipal (import sol·licitat a la instància/atorgat)",{"$f":"'Reformulació Pressupost Aa'!B15","v":0},{"$f":"'Reformulació Pressupost Aa'!H15","v":0}]
[null,"D2. Rendiments anuals nets de l’empresari/a individual (veure 13.2 bases) ",{"$f":"+'Reformulació Pressupost Aa'!E28","v":0},{"$f":"+'Reformulació Pressupost Aa'!K28","v":0},{"$f":"+'Reformulació Pressupost Aa'!B28","v":0},{"$f":"+'Reformulació Pressupost Aa'!H28","v":0},null,"B.","Subvencions d'altres administracions"]
[null,"D3. Treballs realitzats per professionals i empreses externes directament vinculades al projecte, despeses de llicències i taxes relacionades amb la constitució, inici i desenvolupament de l'activitat",{"$f":"+'Reformulació Pressupost Aa'!E35","v":0},{"$f":"+'Reformulació Pressupost Aa'!K35","v":0},{"$f":"+'Reformulació Pressupost Aa'!B35","v":0},{"$f":"+'Reformulació Pressupost Aa'!H35","v":0},null,null,null,null,null,{"$f":"+IF(K11<0,\"No s'admeten valors negatius\",\"\")","v":""}]
[null,null,null,null,null,null,{"$f":"+IF(D11<0,\"No s'admeten valors negatius\",\"\")","v":""},"C.","Subvencions d'ens privats",null,null,""]
[null,"Total Despeses Directes   ",{"$f":"SUM(C9:C12)","v":0},{"$f":"SUM(D9:D12)","v":0},{"$f":"SUM(E9:E12)","v":0},{"$f":"SUM(F9:F12)","v":0},null,"D.","Recursos propis de l'organització aplicats al projecte"]
["Despeses indirectes (màxim 10% subvenció)",null,"Indirectes inicial total",null,"Indirectes inicial subvenció",null,{"$f":"+IF(D12<0,\"No s'admeten valors negatius\",\"\")","v":""}]
[null,null,null,null,null,null,{"$f":"+IF(D13<0,\"No s'admeten valors negatius\",\"\")","v":""},"E.","Taquillatge"]
[null,"Total Despeses Indirectes   ",{"$f":"'Reformulació Pressupost Aa'!E93","v":0},{"$f":"'Reformulació Pressupost Aa'!K93","v":0},{"$f":"'Reformulació Pressupost Aa'!B93","v":0},{"$f":"'Reformulació Pressupost Aa'!H93","v":0},null,"F.","Quotes d'inscripció"]
[null,"Total Despeses ",{"$f":"+C13+C16","v":0},0,{"$f":"+E13+E16","v":0},0,null,"G.","Venda de Productes"]
[null,null,null,null,null,null,null,"H","Publicitat i/o Esponsorització"]
[null,null,null,null,null,null,null,"I.","Altres ingressos"]
[null,null,null,null,null,null,null,null,"Total Ingressos",{"$f":"SUM(J9:J19)","v":0},0]
[]
[null,null,null,null,null,null,null,"Ingressos menys despeses ",null,{"$f":"+J20-C17","v":0},{"$f":"+K20-D17","v":0}]
[]
[null,null,null,null,null,null,null,null,null,"% subvencionat inicialment",{"$f":"IF(J9>0,J9/C17,\"\")","v":""}]
[]
[null,null,null,null,null,null,null,null,null,"% subvencionat després de reformular",{"$f":"IF(K9>9,K9/D17,\"\")","v":""},"*"]
[null,null,null,null,null,null,null,"*Aquest percentatge ha de ser igual o menor al percentatge subvencionat inicialment."]